bitfinex/quotes_SOLUSD_20250617
["timestamp","ask_amount","ask_price","bid_price","bid_amount"]
[1750167818454,11.20947456,149.96,149.92,6.67022411]
[1750167818637,11.20947456,149.95,149.92,6.67022411]
[1750167818838,18.64964886,149.92,149.88,6.67200427]
[1750167819144,11.20947456,149.9,149.87,6.67235953]
[1750167819935,6.58432314,149.93,149.87,6.67235953]
[1750167820347,11.20947456,149.88,149.84,6.67378537]
[1750167820545,11.20947456,149.86,149.84,6.67378537]
[1750167821549,11.20947456,149.87,149.83,6.67423079]
[1750167822135,11.20947456,149.87,149.83,17.88370535]
[1750167822954,11.20947456,149.87,149.83,6.67423079]
[1750167823135,11.20947456,149.87,149.83,17.88370535]
[1750167825158,0.28432314,149.9,149.83,17.88370535]
[1750167825666,0.28432314,149.9,149.84,11.20947456]
[1750167825667,11.20947456,149.88,149.84,11.20947456]
[1750167826159,46.66964886,149.91,149.85,11.20947456]
[1750167826468,29.85912342,149.89,149.85,11.20947456]
[1750167826681,29.85912342,149.89,149.84,11.20947456]
[1750167826839,29.85912342,149.89,149.85,11.20947456]
[1750167827042,29.85912342,149.89,149.83,23.35980777]
[1750167827366,29.85912342,149.89,149.85,11.20947456]
[1750167827573,29.85912342,149.89,149.86,6.6728947]
[1750167828362,18.64964886,149.89,149.86,6.6728947]
[1750167828548,29.85912342,149.89,149.86,6.6728947]
[1750167830153,18.64964886,149.89,149.86,6.6728947]
[1750167830564,29.85912342,149.89,149.86,6.6728947]
[1750167831359,18.64964886,149.91,149.86,17.88236926]
[1750167831666,18.64964886,149.91,149.86,6.6728947]
[1750167831667,11.20947456,149.9,149.86,6.6728947]
[1750167831876,11.20947456,149.9,149.86,17.88236926]
[1750167832070,29.85912342,149.91,149.87,11.20947456]
[1750167832446,18.64964886,149.92,149.87,11.20947456]
[1750167832673,11.20947456,149.91,149.87,11.20947456]
[1750167832853,18.64964886,149.92,149.87,11.20947456]
[1750167833053,11.20947456,149.91,149.87,11.20947456]
[1750167833975,11.20947456,149.91,149.88,6.67200427]
[1750167834552,29.85912342,149.92,149.88,6.67200427]
[1750167834852,11.20947456,149.91,149.88,6.67200427]
[1750167835858,11.20947456,149.89,149.84,17.88325993]
[1750167838381,6.32,149.92,149.85,11.20947456]
[1750167838561,24.96964886,149.92,149.88,11.20947456]
[1750167838963,31.51429073,149.92,149.84,23.35824879]
[1750167839167,31.51429073,149.92,149.87,6.54464187]
[1750167839686,6.54464187,149.91,149.87,6.54464187]
[1750167839866,25.19429073,149.91,149.86,6.54464187]
[1750167840383,25.19429073,149.9,149.87,6.67244945]
[1750167840570,6.54464187,149.88,149.84,6.67378537]
[1750167841178,18.64964886,149.9,149.84,29.90289066]
[1750167841381,6.54464187,149.89,149.85,6.54464187]
[1750167841678,25.19429073,149.9,149.85,6.54464187]
[1750167842286,18.64964886,149.9,149.85,6.54464187]
[1750167842464,25.19429073,149.9,149.86,6.6728947]
[1750167842986,6.54464187,149.89,149.86,6.6728947]
[1750167843183,6.54464187,149.88,149.85,6.6731841]
[1750167843958,18.64964886,149.87,149.85,6.6731841]
[1750167844666,6.54464187,149.87,149.84,6.67378537]
[1750167846172,18.64964886,149.88,149.8,16.68890881]
[1750167846173,6.54464187,149.85,149.8,16.68890881]
[1750167846367,6.54464187,149.85,149.81,6.54464187]
[1750167846570,6.54464187,149.85,149.8,16.68890881]
[1750167846571,6.54464187,149.85,149.82,6.67467627]
[1750167847892,25.32182688,149.88,149.82,6.67467627]
[1750167847893,6.54464187,149.84,149.82,6.67467627]
[1750167848105,18.64964886,149.82,149.77,16.69166282]
[1750167848392,18.64964886,149.82,149.7,35.05892048]
[1750167848393,6.54464187,149.78,149.74,13.22288415]
[1750167848692,18.64964886,149.8,149.74,29.91755873]
[1750167848998,6.54464187,149.79,149.74,29.91755873]
[1750167849397,25.19429073,149.8,149.74,23.37291686]
[1750167849770,6.54464187,149.79,149.74,23.37291686]
[1750167850085,6.54464187,149.79,149.75,6.54464187]
[1750167850267,6.54464187,149.79,149.74,23.37291686]
[1750167850475,31.49429073,149.8,149.76,6.67735042]
[1750167851193,6.54464187,149.79,149.76,6.67735042]
[1750167852095,6.54464187,149.77,149.73,6.6786883]
[1750167852687,6.54464187,149.77,149.73,29.92005093]
[1750167853899,6.54464187,149.77,149.73,23.37540906]
[1750167854093,6.54464187,149.77,149.73,29.92005093]
[1750167854377,6.54464187,149.77,149.73,23.37540906]
[1750167854585,6.54464187,149.76,149.73,6.6786883]
[1750167854995,18.64964886,149.73,149.67,18.08752626]
[1750167855309,6.54464187,149.72,149.67,18.08752626]
[1750167855479,6.54464187,149.72,149.68,6.68091929]
[1750167855881,6.54464187,149.7,149.68,6.68091929]
[1750167856092,6.3,149.74,149.68,6.68091929]
[1750167856297,6.54464187,149.7,149.68,6.68091929]
[1750167856798,11.25219071,149.7,149.68,6.68091929]
[1750167857000,11.25219071,149.71,149.68,6.68091929]
[1750167857204,11.25219071,149.7,149.68,6.68091929]
[1750167857412,20.442772,149.73,149.68,6.68091929]
[1750167857588,11.25219071,149.7,149.68,6.68091929]
[1750167857792,11.25219071,149.69,149.68,6.68091929]
[1750167857990,11.25219071,149.69,149.67,1.3849775]
[1750167857991,18.64964886,149.68,149.67,1.3849775]
[1750167858226,36.43366271,149.68,149.67,1.3849775]
[1750167858827,29.90183957,149.68,149.67,1.3849775]
[1750167859115,36.22183957,149.71,149.67,1.3849775]
[1750167859276,11.25219071,149.68,149.67,1.3849775]
[1750167860725,18.64964886,149.7,149.67,1.3849775]
[1750167860885,11.25219071,149.69,149.67,1.3849775]
[1750167861218,18.64964886,149.7,149.67,1.3849775]
[1750167861518,11.25219071,149.68,149.67,1.3849775]
[1750167862087,11.53651385,149.69,149.67,1.3849775]
[1750167862507,11.25219071,149.68,149.67,1.3849775]
[1750167862705,6.96483719,149.69,149.67,1.3849775]
[1750167862913,39.57651385,149.68,149.67,1.3849775]
[1750167863218,58.22616271,149.68,149.67,1.3849775]
[1750167863385,63.14883516,149.68,149.67,1.3849775]
[1750167864623,64.79423516,149.68,149.67,1.3849775]
[1750167864811,64.79423516,149.68,149.6,6.6843614]
[1750167864812,0.28432314,149.66,149.6,6.6843614]
[1750167865011,0.28432314,149.64,149.58,6.6850569]
[1750167865326,18.64964886,149.61,149.56,23.40197913]
[1750167865709,18.64964886,149.61,149.58,11.25219071]
[1750167865905,18.64964886,149.62,149.56,23.40197913]
[1750167866116,11.25219071,149.6,149.56,17.93847046]
[1750167866316,0.28432314,149.61,149.56,6.68627975]
[1750167866631,0.28432314,149.61,149.56,17.93847046]
[1750167866802,11.25219071,149.61,149.56,17.93847046]
[1750167867000,18.64964886,149.62,149.56,6.68627975]
[1750167867001,11.25219071,149.6,149.56,6.68627975]
[1750167867202,11.25219071,149.58,149.53,6.68762121]
[1750167867433,46.70964886,149.6,149.53,6.68762121]
[1750167867809,46.70964886,149.6,149.56,11.25219071]
[1750167868016,46.70964886,149.6,149.57,11.25219071]
[1750167868238,46.70964886,149.6,149.53,23.40667424]
[1750167868239,29.90183957,149.6,149.53,23.40667424]
[1750167868409,29.90183957,149.6,149.55,11.25219071]
[1750167868410,11.25219071,149.6,149.55,11.25219071]
[1750167868612,0.28432314,149.61,149.53,23.40667424]
[1750167868841,11.25219071,149.59,149.53,16.71905303]
[1750167869135,11.25219071,149.58,149.54,11.25219071]
[1750167869506,0.28432314,149.59,149.52,6.68806848]
[1750167869707,11.25219071,149.57,149.52,6.68806848]
[1750167870217,18.64964886,149.58,149.52,6.68806848]
[1750167870440,18.64964886,149.58,149.54,11.25219071]
[1750167870626,18.64964886,149.58,149.55,17.93869501]
[1750167870816,18.64964886,149.58,149.55,6.6865043]
[1750167871215,29.90183957,149.58,149.53,17.93981192]
[1750167871411,11.25219071,149.57,149.51,6.68851581]
[1750167871643,18.64964886,149.55,149.52,11.25219071]
[1750167872140,18.64964886,149.54,149.51,17.94070652]
[1750167872307,6.32,149.56,149.51,17.94070652]
[1750167872512,18.64964886,149.55,149.52,11.25219071]
[1750167872924,18.64964886,149.55,149.49,23.41293731]
[1750167873133,29.90183957,149.55,149.51,11.25219071]
[1750167873336,29.90183957,149.55,149.5,11.25219071]
[1750167873639,29.90183957,149.55,149.51,11.25219071]
[1750167874145,18.64964886,149.55,149.51,11.25219071]
[1750167874308,29.90183957,149.55,149.49,23.41293731]
[1750167874508,18.64964886,149.55,149.51,11.25219071]
[1750167874739,18.64964886,149.55,149.53,6.68762121]
[1750167875922,29.90183957,149.55,149.51,11.25219071]
[1750167876115,29.90183957,149.55,149.5,17.94115392]
[1750167876729,11.25219071,149.54,149.49,17.94160137]
[1750167876936,6.57946209,149.53,149.49,13.26887275]
[1750167877114,6.57946209,149.54,149.49,13.26887275]
[1750167877322,6.57946209,149.54,149.49,6.68941066]
[1750167877539,6.57946209,149.54,149.49,13.26887275]
[1750167877735,53.39639638,149.55,149.49,13.26887275]
[1750167877911,53.39639638,149.55,149.43,0.14216157]
[1750167877912,26.0,149.47,149.39,6.69388847]
[1750167878116,18.64964886,149.43,149.39,6.69388847]
[1750167878331,25.22911095,149.43,149.38,8.22525585]
[1750167878533,18.64964886,149.43,149.39,6.57946209]
[1750167878748,20.089061,149.47,149.42,6.57946209]
[1750167878946,6.3,149.49,149.46,11.28360018]
[1750167879115,6.3,149.49,149.38,41.6969388]
[1750167879116,6.3,149.49,149.38,1.53100023]
[1750167879320,1.5333,149.44,149.27,1.5272]
[1750167879518,11.28360018,149.39,149.33,11.28360018]
[1750167879719,11.28360018,149.37,149.27,1.5272]
[1750167879931,28.24,149.38,149.27,1.5272]
[1750167879932,39.52360018,149.38,149.32,11.28360018]
[1750167880150,11.28360018,149.37,149.27,1.5272]
[1750167880313,11.28360018,149.37,149.22,28.20868232]
[1750167880314,37.28360018,149.37,149.25,6.69972707]
[1750167880519,26.0,149.35,149.23,6.70106546]
[1750167880753,11.28360018,149.3,149.22,18.20868232]
[1750167881053,11.28360018,149.27,149.23,11.28360018]
[1750167881343,28.26,149.32,149.22,29.4922825]
[1750167881550,11.28360018,149.31,149.22,36.19375742]
[1750167881732,11.28360018,149.3,149.26,11.28360018]
[1750167881934,11.28360018,149.31,149.26,11.28360018]
[1750167882136,28.26,149.32,149.22,24.91015724]
[1750167882325,11.28360018,149.28,149.24,11.28360018]
[1750167882526,11.28360018,149.27,149.23,11.28360018]
[1750167882728,6.69747505,149.31,149.23,17.98452246]
[1750167882916,11.28360018,149.28,149.23,6.70092228]
[1750167883121,6.69747505,149.31,149.22,24.91007599]
[1750167883321,11.28360018,149.29,149.24,11.28360018]
[1750167883545,28.26,149.32,149.25,11.28360018]
[1750167883746,28.26,149.32,149.27,11.28360018]
[1750167883939,28.26,149.32,149.28,11.28360018]
[1750167884136,11.28360018,149.31,149.23,26.0]
[1750167884451,11.28360018,149.3,149.25,11.28360018]
[1750167884637,11.28360018,149.29,149.23,26.0]
[1750167884831,11.28360018,149.28,149.22,18.20868232]
[1750167885339,6.69800754,149.3,149.22,18.20868232]
[1750167885340,28.26,149.32,149.24,11.28360018]
[1750167885541,11.28360018,149.3,149.25,11.28360018]
[1750167886050,28.26,149.32,149.23,23.45372913]
[1750167886559,11.28360018,149.3,149.23,23.45372913]
[1750167886851,11.28360018,149.31,149.23,6.70106546]
[1750167887346,11.28360018,149.27,149.23,6.70106546]
[1750167887526,11.28360018,149.31,149.22,36.1937154]
[1750167887725,11.28360018,149.27,149.22,24.91011522]
[1750167887938,11.28360018,149.27,149.22,36.1937154]
[1750167888146,11.28360018,149.27,149.23,11.28360018]
[1750167888355,77.69968278,149.32,149.23,11.28360018]
[1750167888666,11.28360018,149.27,149.24,6.70061645]
[1750167889156,60.95711648,149.32,149.24,6.70061645]
[1750167889157,18.64964886,149.31,149.24,6.70061645]
[1750167889376,18.64964886,149.31,149.26,11.28360018]
[1750167889377,11.28360018,149.3,149.26,11.28360018]
[1750167889526,11.28360018,149.29,149.24,6.70061645]
[1750167889726,11.28360018,149.29,149.25,11.28360018]
[1750167890354,11.28360018,149.3,149.26,11.28360018]
[1750167890653,6.32,149.31,149.26,11.28360018]
[1750167890957,11.28360018,149.3,149.26,11.28360018]
[1750167891129,6.32,149.31,149.26,11.28360018]
[1750167891437,17.60360018,149.31,149.26,11.28360018]
[1750167891638,6.32,149.31,149.26,11.28360018]
[1750167891846,17.60360018,149.31,149.23,23.45342622]
[1750167892046,6.32,149.31,149.27,11.28360018]
[1750167892225,6.32,149.31,149.23,23.45342622]
[1750167892428,17.60360018,149.31,149.23,23.45342622]
[1750167892943,6.32,149.31,149.26,11.28360018]
[1750167893134,24.3011084,149.31,149.23,23.45342622]
[1750167893332,13.01750822,149.31,149.26,11.28360018]
[1750167893533,24.3011084,149.31,149.26,11.28360018]
[1750167893838,18.64964886,149.3,149.26,11.28360018]
[1750167894333,18.64964886,149.3,149.27,11.28360018]
[1750167895634,25.34767955,149.3,149.24,6.70061645]
[1750167895835,25.34767955,149.3,149.26,11.28360018]
[1750167896137,18.64964886,149.3,149.26,11.28360018]
[1750167896351,29.93324904,149.3,149.26,11.28360018]
[1750167896953,29.93324904,149.3,149.25,6.70007739]
[1750167897150,18.64964886,149.3,149.26,11.28360018]
[1750167897356,6.69523299,149.36,149.23,6.70106546]
[1750167897672,18.933972,149.33,149.26,11.28360018]
[1750167897981,18.64964886,149.31,149.23,6.70106546]
[1750167898157,29.93324904,149.31,149.26,11.28360018]
[1750167898354,29.93324904,149.31,149.27,11.28360018]
[1750167898662,29.93324904,149.31,149.27,17.98286021]
[1750167898839,18.64964886,149.31,149.28,11.28360018]
[1750167899166,18.64964886,149.31,149.27,6.69926003]
[1750167899326,18.64964886,149.31,149.27,17.98286021]
[1750167899762,6.69629167,149.34,149.28,11.28360018]
[1750167900060,155.42,149.35,149.31,11.28360018]
[1750167900232,6.32,149.35,149.33,11.28360018]
[1750167900529,17.82050018,149.39,149.34,17.97952965]
[1750167900731,6.5369,149.39,149.35,11.28360018]
[1750167901169,18.64964886,149.38,149.35,11.28360018]
[1750167901335,29.93324904,149.36,149.29,16.74500301]
[1750167901536,11.28360018,149.34,149.28,6.698821]
[1750167901767,18.64964886,149.34,149.3,11.28360018]
[1750167901973,18.64964886,149.34,149.31,11.28360018]
[1750167902281,18.64964886,149.34,149.3,11.28360018]
[1750167902443,11.28360018,149.34,149.3,11.28360018]
[1750167902650,29.93324904,149.34,149.29,17.98165918]
[1750167902958,32.5369,149.39,149.33,11.28360018]
[1750167903152,18.64964886,149.36,149.33,11.28360018]
[1750167903747,18.64964886,149.36,149.32,11.28360018]
[1750167903948,29.93324904,149.36,149.31,6.69721921]
[1750167904243,29.93324904,149.36,149.31,17.98081939]
[1750167904244,11.28360018,149.36,149.31,17.98081939]
[1750167904474,30.21757218,149.37,149.31,6.69721921]
[1750167904657,18.64964886,149.37,149.33,11.28360018]
[1750167905075,30.21757218,149.38,149.33,11.28360018]
[1750167905371,18.933972,149.38,149.32,11.28360018]
[1750167905549,11.28360018,149.36,149.32,11.28360018]
[1750167905752,11.28360018,149.37,149.33,11.28360018]
[1750167906388,18.64964886,149.38,149.35,11.28360018]
[1750167906689,18.64964886,149.38,149.33,6.6964415]
[1750167906868,18.64964886,149.38,149.35,11.28360018]
[1750167907861,18.64964886,149.38,149.35,17.97924384]
[1750167908169,18.64964886,149.38,149.32,6.69702652]
[1750167908470,29.93324904,149.38,149.32,6.69702652]
[1750167908646,18.64964886,149.39,149.33,11.28360018]
[1750167908848,18.64964886,149.39,149.32,6.69702652]
[1750167909059,11.28360018,149.36,149.31,6.69732432]
[1750167909252,11.28360018,149.35,149.31,6.69732432]
[1750167909780,18.64964886,149.35,149.31,17.9809245]
[1750167910077,29.93324904,149.35,149.31,17.9809245]
[1750167910275,18.64964886,149.35,149.31,6.69732432]
[1750167910489,29.93324904,149.35,149.31,17.9809245]
[1750167911551,13.01358506,149.4,149.34,11.28360018]
[1750167911845,29.93324904,149.36,149.31,17.9809245]
[1750167912154,29.93324904,149.36,149.32,11.28360018]
[1750167912357,29.93324904,149.36,149.31,6.69732432]
[1750167912571,29.93324904,149.36,149.32,11.28360018]
[1750167913655,0.28432314,149.38,149.33,11.28360018]
[1750167913861,18.64964886,149.36,149.32,11.28360018]
[1750167914103,29.93324904,149.36,149.32,17.98058788]
[1750167914251,11.28360018,149.34,149.27,16.74713885]
[1750167914457,25.34517764,149.36,149.27,16.74713885]
[1750167914772,11.28360018,149.34,149.29,11.28360018]
[1750167914949,11.28360018,149.33,149.29,11.28360018]
[1750167915151,11.28360018,149.34,149.3,11.28360018]
[1750167915369,28.52,149.37,149.32,11.28360018]
[1750167915576,32.32,149.4,149.33,11.28360018]
[1750167915787,18.64964886,149.39,149.35,11.28360018]
[1750167915954,6.32,149.4,149.38,11.28360018]
[1750167916154,18.64964886,149.42,149.34,1.5345]
[1750167916357,18.64964886,149.41,149.37,11.28360018]
[1750167916662,34.82797984,149.41,149.37,11.28360018]
[1750167916862,18.64964886,149.41,149.34,1.5345]
[1750167917063,18.64964886,149.41,149.38,11.28360018]
[1750167917253,18.64964886,149.41,149.35,23.43488449]
[1750167917453,18.64964886,149.41,149.38,11.28360018]
[1750167917668,4.90672958,149.42,149.35,23.43488449]
[1750167917970,23.55637844,149.44,149.41,11.28360018]
[1750167918170,6.58,149.45,149.42,11.28360018]
[1750167918358,4.91760715,149.44,149.42,11.28360018]
[1750167918681,4.91760715,149.44,149.41,11.28360018]
[1750167918887,17.86360018,149.45,149.36,26.0]
[1750167919061,6.58,149.45,149.41,11.28360018]
[1750167919258,11.49825432,149.45,149.42,11.28360018]
[1750167919482,4.91825432,149.45,149.43,11.28360018]
[1750167919667,4.91878812,149.48,149.44,11.28360018]
[1750167919858,4.91878812,149.47,149.43,11.28360018]
[1750167920058,23.56843698,149.46,149.42,17.97602249]
[1750167920259,4.91878812,149.45,149.42,17.97602249]
[1750167920558,18.64964886,149.46,149.42,11.28360018]
[1750167920879,4.92873002,149.45,149.42,11.28360018]
[1750167921179,4.92873002,149.45,149.41,6.69286053]
[1750167921180,18.64964886,149.47,149.44,11.28360018]
[1750167921353,4.92885551,149.46,149.45,11.28360018]
[1750167921558,4.92885551,149.46,149.44,11.28360018]
[1750167921887,18.64964886,149.47,149.44,11.28360018]
[1750167922192,4.92809103,149.46,149.43,11.28360018]
[1750167922408,18.64964886,149.47,149.37,6.69478476]
[1750167922409,18.64964886,149.44,149.37,6.69478476]
[1750167922702,11.28360018,149.4,149.37,6.69478476]
[1750167922859,11.28360018,149.4,149.35,11.28360018]
[1750167923059,4.93871685,149.39,149.35,17.97920651]
[1750167923266,18.64964886,149.39,149.35,17.97920651]
[1750167923474,18.933972,149.42,149.36,11.28360018]
[1750167923676,18.64964886,149.4,149.36,11.28360018]
[1750167923958,4.93953991,149.39,149.36,11.28360018]
[1750167924287,4.93953991,149.38,149.35,6.69560633]
[1750167924594,43.09854904,149.43,149.35,6.69560633]
[1750167924595,29.93324904,149.42,149.37,11.28360018]
[1750167924891,16.23309463,149.41,149.37,11.28360018]
[1750167925195,6.58,149.43,149.35,82.91321596]
[1750167925374,4.95020385,149.42,149.37,6.69478476]
[1750167925564,149.1,149.46,149.37,6.69478476]
[1750167925764,4.94807731,149.45,149.37,23.43174666]
[1750167925967,4.94807731,149.44,149.37,23.43174666]
[1750167926278,18.64964886,149.47,149.43,11.28360018]
[1750167926469,4.94782453,149.46,149.43,11.28360018]
[1750167926787,4.94782453,149.45,149.42,11.28360018]
[1750167926991,4.94782453,149.44,149.42,11.28360018]
[1750167927171,4.94782453,149.44,149.37,56.90567047]
[1750167927172,29.93324904,149.47,149.43,11.28360018]
[1750167927370,4.94753542,149.46,149.43,11.28360018]
[1750167927566,4.94753542,149.45,149.43,11.28360018]
[1750167927774,29.93324904,149.47,149.43,17.97568813]
[1750167928015,4.94475931,149.46,149.43,17.97568813]
[1750167928190,4.94475931,149.45,149.43,17.97568813]
[1750167928372,18.64964886,149.47,149.43,17.97568813]
[1750167928578,4.94502879,149.46,149.43,17.97568813]
[1750167928896,4.94502879,149.45,149.43,17.97568813]
[1750167929199,4.94529226,149.46,149.43,17.97568813]
[1750167929380,18.64964886,149.47,149.43,17.97568813]
[1750167929583,4.94307702,149.46,149.43,11.28360018]
[1750167929794,4.94329853,149.46,149.43,17.97563213]
[1750167930090,4.94351375,149.46,149.42,8.24821787]
[1750167930506,16.22711393,149.46,149.42,19.53181805]
[1750167930670,16.22711393,149.46,149.42,1.5558267]
[1750167930873,16.22711393,149.46,149.42,12.83942688]
[1750167931202,16.22711393,149.46,149.42,1.5558267]
[1750167931407,25.34002733,149.47,149.42,19.5318428]
[1750167931705,36.62362751,149.47,149.42,19.5318428]
[1750167931893,29.93324904,149.47,149.42,19.5318428]
[1750167932077,36.62358226,149.47,149.42,8.24824262]
[1750167932283,4.94192715,149.46,149.43,11.28360018]
[1750167932603,18.64964886,149.47,149.43,11.28360018]
[1750167932778,4.94471396,149.47,149.44,11.28360018]
[1750167932984,4.94471396,149.47,149.45,11.28360018]
[1750167933323,6.58,149.48,149.46,11.28360018]
[1750167933606,6.58,149.48,149.47,11.28360018]
[1750167933776,4.94551127,149.49,149.46,6.69037217]
[1750167933980,4.94551127,149.49,149.46,17.97397235]
[1750167934797,23.59516013,149.5,149.47,11.28360018]
[1750167934998,4.94551127,149.49,149.46,17.97397235]
[1750167935309,4.94551127,149.5,149.47,11.28360018]
[1750167935547,4.94723434,149.52,149.49,11.28360018]
[1750167935713,6.58,149.53,149.51,11.28360018]
[1750167935884,11.26073609,149.55,149.52,11.28360018]
[1750167936205,18.64964886,149.56,149.53,11.28360018]
[1750167936508,29.93324904,149.56,149.51,17.97200562]
[1750167936690,29.93324904,149.56,149.52,11.28360018]
[1750167936878,18.64964886,149.57,149.53,11.28360018]
[1750167937078,18.64964886,149.57,149.51,6.68840544]
[1750167937079,6.48,149.59,149.55,11.28360018]
[1750167937308,18.64964886,149.58,149.51,23.40969498]
[1750167937478,6.48,149.59,149.55,11.28360018]
[1750167937683,6.48,149.59,149.56,11.28360018]
[1750167937888,6.48,149.59,149.56,17.96978144]
[1750167938116,6.48,149.59,149.54,6.687174]
[1750167938417,29.93324904,149.58,149.54,11.28360018]
[1750167938714,29.93324904,149.58,149.53,6.68760753]
[1750167938887,29.93324904,149.58,149.54,11.28360018]
[1750167939499,18.64964886,149.58,149.53,6.68760753]
[1750167939705,29.93324904,149.58,149.54,11.28360018]
[1750167940393,18.64964886,149.58,149.55,11.28360018]
[1750167940816,6.48,149.59,149.56,11.28360018]
[1750167940996,17.76360018,149.59,149.53,6.68760753]
[1750167941328,36.61864251,149.58,149.53,17.97120771]
[1750167941635,29.93324904,149.58,149.53,6.68760753]
[1750167941800,29.93324904,149.58,149.53,17.97120771]
[1750167942193,29.93324904,149.58,149.54,11.28360018]
[1750167942997,6.48,149.59,149.56,11.28360018]
[1750167943242,6.48,149.59,149.57,11.28360018]
[1750167943405,46.2428213,149.6,149.58,6.68512471]
[1750167943608,46.2428213,149.6,149.59,11.28360018]
[1750167944698,18.64964886,149.65,149.59,11.28360018]
[1750167944921,23.57687529,149.65,149.62,11.28360018]
[1750167945128,18.64964886,149.65,149.61,11.28360018]
[1750167945294,36.61564023,149.65,149.61,11.28360018]
[1750167945719,25.33204005,149.65,149.61,11.28360018]
[1750167946028,18.64964886,149.65,149.61,17.96763622]
[1750167946321,29.93324904,149.65,149.61,17.96763622]
[1750167946524,18.64964886,149.65,149.61,17.96763622]
[1750167946816,23.57720517,149.65,149.6,11.28360018]
[1750167947024,23.57720517,149.65,149.58,6.68538574]
[1750167947025,11.28360018,149.64,149.58,6.68538574]
[1750167947211,11.28360018,149.64,149.6,11.28360018]
[1750167947411,11.28360018,149.64,149.6,17.96804391]
[1750167947721,18.64964886,149.65,149.6,6.68444373]
[1750167947901,29.93324904,149.65,149.61,11.28360018]
[1750167948240,18.64964886,149.65,149.61,11.28360018]
[1750167948442,29.93324904,149.65,149.61,11.28360018]
[1750167948600,11.28360018,149.63,149.59,11.28360018]
[1750167948804,11.28360018,149.63,149.58,17.96898592]
[1750167949019,11.28360018,149.64,149.59,11.28360018]
[1750167949219,11.28360018,149.64,149.58,6.68538574]
[1750167949220,11.28360018,149.64,149.6,11.28360018]
[1750167949507,17.96660977,149.64,149.59,17.96846124]
[1750167950011,17.96660977,149.64,149.59,6.68486106]
[1750167950227,29.93324904,149.63,149.59,11.28360018]
[1750167951033,29.93324904,149.63,149.57,6.6856669]
[1750167951324,11.28360018,149.61,149.57,17.96926708]
[1750167951630,29.93324904,149.62,149.58,11.28360018]
[1750167952603,36.61685653,149.62,149.56,1.5271]
[1750167952923,11.28360018,149.61,149.56,17.9697028]
[1750167953105,25.33325635,149.62,149.56,17.9697028]
[1750167953310,11.28360018,149.58,149.54,17.97060399]
[1750167953518,18.64964886,149.6,149.54,17.97060399]
[1750167953821,11.28360018,149.59,149.55,11.28360018]
[1750167954216,11.28360018,149.59,149.52,11.28360018]
[1750167954217,11.28360018,149.56,149.52,11.28360018]
[1750167954425,28.26,149.58,149.53,11.28360018]
[1750167954611,28.26,149.58,149.55,17.97030834]
[1750167954940,28.26,149.58,149.56,11.28360018]
[1750167955103,36.41324904,149.6,149.56,11.28360018]
[1750167955104,6.48,149.6,149.56,11.28360018]
[1750167955828,6.48,149.6,149.57,11.28360018]
[1750167956028,6.48,149.6,149.58,11.28360018]
[1750167956236,18.64964886,149.64,149.59,11.28360018]
[1750167956406,11.28360018,149.63,149.58,11.28360018]
[1750167956607,11.28360018,149.62,149.58,17.9686451]
[1750167956906,39.54360018,149.63,149.58,17.9686451]
[1750167957714,11.28360018,149.62,149.58,6.68504492]
[1750167958436,39.54360018,149.63,149.58,17.9686451]
[1750167958809,28.26,149.63,149.58,17.9686451]
[1750167959011,28.26,149.63,149.59,11.28360018]
[1750167959332,39.54360018,149.63,149.59,11.28360018]
[1750167959509,39.54360018,149.63,149.58,17.9686451]
[1750167959711,11.28360018,149.62,149.58,17.9686451]
[1750167960037,11.28360018,149.62,149.58,6.68504492]
[1750167960333,11.28360018,149.62,149.58,17.9686451]
[1750167963852,29.93324904,149.65,149.61,17.9672807]
[1750167964026,11.28360018,149.64,149.6,17.96793016]
[1750167964344,36.6155726,149.65,149.6,6.68432998]
[1750167964549,11.28360018,149.64,149.6,17.96793016]
[1750167965234,11.28360018,149.63,149.59,17.96842852]
[1750167965625,11.28360018,149.63,149.59,6.68482834]
[1750167966216,11.28360018,149.63,149.59,17.96842852]
[1750167966649,18.64964886,149.63,149.58,17.96882027]
[1750167967022,51.74677049,149.63,149.58,17.96882027]
[1750167967225,46.80964886,149.63,149.58,17.96882027]
[1750167967649,46.80964886,149.63,149.6,11.28360018]
[1750167968035,46.80964886,149.63,149.6,17.96800475]
[1750167968360,0.28432314,149.65,149.6,17.96800475]
[1750167968533,23.58685168,149.65,149.62,11.28360018]
[1750167968724,23.58685168,149.65,149.6,6.68440457]
[1750167968725,23.58685168,149.65,149.61,11.28360018]
[1750167968927,34.87045186,149.65,149.61,11.28360018]
[1750167969126,18.64964886,149.65,149.61,11.28360018]
[1750167969466,23.59348649,149.65,149.61,11.28360018]
[1750167970038,46.78964886,149.66,149.63,11.28360018]
[1750167970257,28.14,149.66,149.63,11.28360018]
[1750167970469,6.36,149.67,149.63,11.28360018]
[1750167970755,4.94865237,149.66,149.63,11.28360018]
[1750167970973,4.94852486,149.66,149.63,11.28360018]
[1750167972033,11.30852486,149.67,149.59,6.68493883]
[1750167972350,11.30852486,149.67,149.65,11.28360018]
[1750167972556,4.94852486,149.66,149.65,11.28360018]